bitfinex/quotes_ETHUSD_20251230
["timestamp","ask_amount","ask_price","bid_price","bid_amount"]
[1767100626565,2.3393,2983.3,2982.9,2.3173]
[1767100632569,0.002,2983.3,2982.9,2.3173]
[1767100632746,2.368,2983.5,2983.0,2.4686]
[1767100636074,0.002,2983.6,2983.1,2.287]
[1767100636275,2.3832,2983.7,2983.1,2.287]
[1767100636662,2.3832,2983.7,2983.2,2.287]
[1767100637358,0.002,2983.8,2983.2,2.287]
[1767100637867,2.3852,2983.9,2983.2,2.287]
[1767100638254,2.3852,2983.9,2983.3,2.287]
[1767100639077,0.002,2983.9,2983.3,2.287]
[1767100639969,2.3852,2983.9,2983.3,2.287]
[1767100640551,5.73653538,2983.9,2983.3,2.287]
[1767100640965,2.3832,2983.8,2983.3,2.287]
[1767100643378,2.3832,2983.8,2983.5,2.287]
[1767100644081,0.002,2983.9,2983.5,2.287]
[1767100651685,5.73624249,2984.2,2983.7,2.287]
[1767100651868,2.3852,2984.2,2983.7,2.287]
[1767100652458,5.7361837,2984.2,2983.7,2.287]
[1767100652859,2.3852,2984.2,2983.7,2.287]
[1767100653260,5.73618382,2984.2,2983.7,2.287]
[1767100654372,2.3832,2984.1,2983.7,2.287]
[1767100658296,2.3832,2984.1,2983.7,2.6037]
[1767100659678,0.002,2984.2,2983.7,2.6037]
[1767100659886,2.3852,2984.2,2983.7,2.6037]
[1767100661063,2.3832,2984.1,2983.7,2.6037]
[1767100661265,2.3832,2984.1,2983.7,2.287]
[1767100667817,2.3447,2984.0,2983.7,2.287]
[1767100670498,2.3467,2984.2,2983.7,2.287]
[1767100671819,2.3447,2984.1,2983.7,2.287]
[1767100672111,2.3467,2984.1,2983.7,2.287]
[1767100685332,0.002,2984.1,2983.7,2.287]
[1767100685491,2.4053,2984.3,2983.8,2.4417]
[1767100685699,3.35269949,2984.5,2983.8,2.4417]
[1767100686109,5.75799949,2984.5,2983.8,2.4417]
[1767100686625,2.4053,2984.4,2983.8,2.4417]
[1767100689224,5.75606932,2984.4,2983.8,2.4417]
[1767100691632,2.4053,2984.4,2983.8,2.4417]
[1767100691802,2.4053,2984.4,2983.9,2.4417]
[1767100693694,5.75606749,2984.4,2983.9,2.4417]
[1767100694825,5.75806749,2984.4,2983.9,2.4417]
[1767100695411,2.4073,2984.4,2983.9,2.4417]
[1767100697830,0.002,2984.5,2983.7,3.35152842]
[1767100698127,2.2704,2985.0,2984.0,2.3654]
[1767100698322,2.2704,2985.0,2984.2,2.3654]
[1767100699921,2.2704,2984.8,2984.2,2.3654]
[1767100701831,5.6208168,2984.8,2984.2,2.3654]
[1767100702132,2.2704,2984.7,2984.2,2.3654]
[1767100702723,2.2704,2984.6,2984.1,0.88]
[1767100703525,2.2704,2984.6,2983.9,2.3654]
[1767100703717,2.2704,2984.4,2983.9,2.3654]
[1767100703915,2.2704,2984.3,2983.9,2.3654]
[1767100705338,2.2704,2984.3,2983.8,0.881]
[1767100705542,2.2704,2984.3,2983.8,3.2464]
[1767100706108,2.2704,2984.3,2983.8,0.881]
[1767100706344,2.2704,2984.3,2983.9,2.3654]
[1767100711148,2.2704,2984.5,2983.9,2.3654]
[1767100712342,2.2724,2984.5,2983.9,2.3654]
[1767100713413,2.2724,2984.5,2984.0,2.3654]
[1767100714726,0.002,2984.5,2984.0,2.3654]
[1767100714934,5.62082241,2984.7,2984.0,2.3654]
[1767100716451,5.62082241,2984.7,2984.1,0.03351094]
[1767100716658,2.2704,2984.7,2984.2,2.3654]
[1767100717357,3.35010904,2985.0,2984.4,0.2484]
[1767100717358,2.2704,2985.0,2984.4,0.2484]
[1767100717551,4.90741861,2985.3,2984.3,0.88]
[1767100717552,0.002,2985.3,2984.6,0.2464]
[1767100717930,2.2724,2985.3,2984.6,0.2464]
[1767100718125,5.62216598,2985.3,2984.6,0.2464]
[1767100718942,2.2724,2985.3,2984.6,0.2464]
[1767100719344,5.62215351,2985.3,2984.6,0.2464]
[1767100719637,6.04282863,2985.3,2984.6,0.2464]
[1767100720557,0.002,2985.1,2984.6,0.2464]
[1767100724765,2.2704,2985.0,2984.2,0.23654]
[1767100724978,2.2704,2985.0,2984.4,0.2464]
[1767100726368,5.62049211,2985.0,2984.4,0.2464]
[1767100726663,3.35009211,2985.0,2984.4,0.2464]
[1767100726863,2.3366,2984.9,2984.4,0.2464]
[1767100728946,2.3386,2985.1,2984.4,0.2464]
[1767100729352,2.3386,2985.1,2984.6,0.2464]
[1767100729574,2.3366,2985.0,2984.6,0.2464]
[1767100733292,5.68669105,2985.0,2984.6,0.2464]
[1767100733595,2.3366,2985.0,2984.6,0.2464]
[1767100734192,5.68669241,2985.0,2984.6,0.2464]
[1767100735092,2.3366,2985.0,2984.6,0.2464]
[1767100737092,2.3366,2984.9,2984.6,0.2464]
[1767100737800,2.3366,2984.9,2984.5,0.879]
[1767100737975,2.3366,2984.9,2984.4,0.2464]
[1767100738177,2.3366,2984.9,2984.5,0.879]
[1767100738477,2.3366,2984.8,2984.5,0.879]
[1767100739797,2.3366,2984.8,2984.5,1.1254]
[1767100740577,2.3366,2985.0,2984.6,0.2464]
[1767100741187,0.002,2985.1,2984.6,0.27990532]
[1767100741387,3.10551779,2985.2,2984.6,0.03350532]
[1767100741584,2.3596,2985.1,2984.5,0.879]
[1767100741995,8.9012579,2985.2,2984.5,0.879]
[1767100741996,3.34991665,2985.2,2984.5,0.879]
[1767100742401,5.70951665,2985.2,2984.5,0.879]
[1767100743900,2.3596,2985.2,2984.5,0.879]
[1767100744699,3.34995471,2985.2,2984.5,0.88]
[1767100744877,2.3596,2985.1,2984.5,0.88]
[1767100748005,3.35195471,2985.2,2984.6,0.03350532]
[1767100748578,3.35195471,2985.2,2984.5,0.88]
[1767100750002,0.002,2985.2,2984.5,0.88]
[1767100750209,2.3596,2985.1,2984.5,0.88]
[1767100750505,2.3616,2985.2,2984.5,0.88]
[1767100752416,3.35190539,2985.2,2984.5,0.88]
[1767100752615,2.3596,2985.1,2984.5,0.88]
[1767100755426,5.70961681,2985.1,2984.5,0.88]
[1767100755828,5.70961681,2985.1,2984.5,0.001]
[1767100756128,5.70961681,2985.1,2984.5,0.88]
[1767100756340,2.3596,2985.1,2984.5,0.88]
[1767100757537,5.70957389,2985.1,2984.5,0.88]
[1767100758630,0.002,2985.2,2984.5,0.88]
[1767100758835,3.35187969,2985.2,2984.5,1.3064258]
[1767100760618,0.002,2985.2,2984.6,0.03350532]
[1767100761221,0.002,2985.2,2984.5,4.69053742]
[1767100762496,0.002,2985.2,2984.5,4.65703098]
[1767100762724,0.002,2985.2,2984.6,1.29131754]
[1767100763222,0.002,2985.2,2984.5,1.3064258]
[1767100763524,2.3706,2985.2,2984.5,1.3064258]
[1767100764432,2.3706,2985.2,2984.5,4.65706448]
[1767100765022,2.3706,2985.2,2984.5,4.65706657]
[1767100768532,2.3706,2985.2,2984.5,1.3064258]
[1767100770831,2.3706,2985.2,2984.6,0.46571457]
[1767100773342,0.002,2985.2,2984.6,0.46571457]
[1767100773535,0.002,2985.2,2984.6,3.8162202]
[1767100776316,0.002,2985.2,2984.6,0.46571457]
[1767100778044,2.3706,2985.2,2984.6,0.46571457]
[1767100778246,2.3706,2985.2,2984.5,0.88]
[1767100778648,2.3686,2985.1,2984.6,0.879]
[1767100782054,2.3686,2985.1,2984.7,0.0335042]
[1767100782956,0.002,2985.2,2984.7,0.0335042]
[1767100783453,0.002,2985.2,2984.6,3.35045256]
[1767100783639,0.002,2985.2,2984.7,0.7581071]
[1767100786755,0.002,2985.4,2984.7,7.45885324]
[1767100786954,0.002,2985.9,2985.0,4.90378798]
[1767100787257,0.002,2985.9,2985.1,0.879]
[1767100787462,0.002,2985.9,2985.2,3.9281381]
[1767100789849,0.002,2985.9,2985.2,7.2779974]
[1767100790360,0.002,2985.9,2985.2,3.9281381]
[1767100792358,2.3062,2985.7,2985.2,0.5782788]
[1767100792563,0.002,2985.7,2985.3,0.879]
[1767100794958,2.3042,2985.6,2985.3,0.879]
[1767100795166,2.3062,2985.7,2985.3,0.879]
[1767100797350,2.3042,2985.6,2984.5,0.001]
[1767100797566,2.3042,2985.4,2984.6,4.22945214]
[1767100797767,2.3042,2985.4,2984.7,0.42304521]
[1767100799261,2.3042,2985.3,2984.5,0.001]
[1767100799464,2.3042,2985.1,2984.5,0.88]
[1767100801346,2.3042,2985.0,2984.5,0.88]
[1767100803365,5.65431259,2985.0,2984.5,0.001]
[1767100803567,5.65431259,2985.0,2984.5,0.88]
[1767100804352,2.3042,2985.0,2984.5,0.88]
[1767100804839,0.002,2985.3,2984.5,0.88]
[1767100805063,5.69317419,2985.2,2984.6,0.03350532]
[1767100805268,6.59766495,2985.2,2984.6,0.03350532]
[1767100806773,2.3433,2985.1,2984.5,0.88]
[1767100809654,2.3433,2985.1,2984.5,0.001]
[1767100809853,2.3433,2985.1,2984.5,0.88]
[1767100810073,2.3433,2985.1,2984.6,0.03350532]
[1767100811072,4.25436495,2985.2,2984.6,0.03350532]
[1767100811274,6.59766495,2985.2,2984.5,0.91350644]
[1767100812277,6.59766495,2985.2,2984.5,0.88]
[1767100812650,6.59766495,2985.2,2984.5,0.001]
[1767100812849,6.59766495,2985.2,2984.5,0.88]
[1767100814165,2.3433,2985.1,2984.5,0.88]
[1767100814352,2.3433,2985.0,2984.5,0.88]
[1767100821686,2.3433,2985.0,2984.5,0.001]
[1767100821985,2.3433,2985.0,2984.5,0.88]
[1767100822762,2.387,2984.9,2984.5,0.88]
[1767100823883,2.387,2984.9,2984.5,0.001]
[1767100824183,2.387,2984.9,2984.5,0.88]
[1767100827494,2.9607002,2984.9,2984.5,0.001]
[1767100827665,2.387,2984.8,2984.5,0.001]
[1767100830895,2.387,2984.8,2984.3,0.879]
[1767100831093,2.387,2984.8,2984.3,0.88]
[1767100831696,2.387,2984.8,2984.4,0.001]
[1767100831897,2.9607121,2984.8,2984.4,0.001]
[1767100832097,2.9607121,2984.8,2984.5,0.001]
[1767100837695,2.387,2984.8,2984.5,0.001]
[1767100844198,2.387,2984.8,2984.5,0.002]
[1767100847706,2.387,2984.8,2984.1,0.001]
[1767100848012,2.387,2984.8,2984.2,0.002]
[1767100848176,2.387,2984.8,2984.3,0.002]
[1767100849286,2.2502,2985.0,2984.3,0.002]
[1767100852201,0.002,2984.8,2984.3,0.002]
[1767100852405,0.002,2984.8,2984.4,0.002]
[1767100853277,2.2522,2984.8,2984.4,0.002]
[1767100853796,2.2502,2984.6,2984.1,0.001]
[1767100853998,2.2502,2984.4,2984.1,0.001]
[1767100855583,2.2502,2984.3,2984.1,0.001]
[1767100855783,2.96568387,2984.3,2984.1,0.001]
[1767100855993,2.2502,2984.3,2984.1,0.001]
[1767100856516,2.2502,2984.3,2983.9,0.881]
[1767100857193,2.2502,2984.3,2983.9,0.879]
[1767100857394,2.2502,2984.3,2983.8,0.001]
[1767100857597,2.2502,2984.3,2983.8,0.88]
[1767100857784,2.2502,2984.3,2983.8,0.883]
[1767100860320,0.71548387,2984.3,2983.8,0.883]
[1767100860630,7.31953874,2983.9,2983.6,0.883]
[1767100860800,2.4149,2983.9,2983.6,0.004]
[1767100860994,2.4149,2983.9,2983.6,0.883]
[1767100861526,2.4149,2983.9,2983.6,0.884]
[1767100865103,3.13038387,2984.3,2983.7,0.004]
[1767100865404,3.13038387,2984.3,2983.6,4.2316452]
[1767100865405,0.89310267,2984.2,2983.6,4.2316452]
[1767100865740,3.13038387,2984.3,2983.6,4.2316452]
[1767100866229,2.4149,2984.7,2983.8,4.90463874]
[1767100867540,2.4149,2984.7,2983.8,8.25596189]
[1767100867904,2.4149,2984.7,2983.8,8.25696189]
[1767100868823,2.4149,2984.7,2983.8,3.35232315]
[1767100869027,2.4149,2984.7,2983.9,1.16084983]
[1767100869730,0.002,2984.8,2984.1,4.90463874]
[1767100869907,0.002,2984.8,2984.3,4.90463874]
[1767100870232,0.002,2984.8,2984.2,0.88]
[1767100873030,2.4149,2984.7,2983.9,4.51213196]
[1767100873213,2.4149,2984.7,2984.0,0.88]
[1767100874033,2.4149,2984.7,2984.1,3.35108091]
[1767100876837,2.4169,2984.7,2984.1,3.35108091]
[1767100879840,2.4169,2984.7,2983.8,0.001]
[1767100880002,2.4672,2984.6,2983.8,3.3523616]
[1767100880201,2.4672,2984.6,2983.9,0.879]
[1767100880405,2.4672,2984.5,2983.9,0.879]
[1767100881031,2.4672,2984.5,2983.9,4.23031704]
[1767100881862,2.4672,2984.5,2983.9,0.879]
[1767100882063,2.4672,2984.5,2983.9,4.2303087]
[1767100883344,2.4672,2984.5,2983.9,0.879]
[1767100884263,2.4672,2984.5,2983.9,4.23031198]
[1767100884565,2.4672,2984.5,2983.9,0.879]
[1767100884735,2.4672,2984.5,2983.9,4.23031624]
[1767100885065,2.71412,2984.5,2983.9,0.879]
[1767100889067,2.71412,2984.5,2983.6,3.35265121]
[1767100889068,2.4672,2984.3,2983.6,0.001]
[1767100889246,4.90605396,2983.8,2983.0,0.001]
[1767100889452,2.9578054,2983.7,2983.0,0.001]
[1767100889843,2.9578054,2983.7,2982.9,0.001]
[1767100890551,2.4672,2983.5,2982.9,0.001]
[1767100891043,2.4672,2983.5,2982.7,0.002]
[1767100891851,2.4672,2983.4,2982.6,0.001]
[1767100892051,2.4672,2983.2,2982.6,0.001]
[1767100892583,2.4672,2983.2,2982.7,0.002]
[1767100893770,2.4672,2983.5,2983.3,0.001]
[1767100894081,2.9578054,2983.7,2983.3,0.001]
[1767100897258,2.4672,2983.6,2983.3,0.001]
[1767100897463,3.09813899,2983.5,2983.3,0.001]
[1767100900968,0.63093899,2983.5,2983.3,0.003]
[1767100902476,0.63093899,2983.5,2983.3,0.001]
[1767100902678,3.09813899,2983.5,2983.3,0.001]
[1767100902889,3.09813899,2983.5,2983.1,0.002]
[1767100902890,2.4672,2983.4,2983.1,0.002]
[1767100903064,2.4672,2983.3,2982.9,0.001]
[1767100904750,2.4672,2983.3,2982.6,0.881]
[1767100905184,2.4672,2983.3,2982.6,0.885]
[1767100905393,2.4672,2983.2,2982.6,0.885]
[1767100905845,2.4672,2983.2,2982.6,0.881]
[1767100906049,2.4672,2983.2,2982.6,0.885]
[1767100906279,3.04912052,2983.2,2982.6,0.005]
[1767100907296,3.04912052,2983.2,2982.7,0.004]
[1767100910156,2.4672,2983.2,2982.7,0.004]
[1767100915506,3.35212163,2983.2,2982.7,0.004]
[1767100915679,2.2947,2983.0,2982.6,0.001]
[1767100916258,2.2947,2982.9,2982.6,0.001]
[1767100917182,2.2947,2982.9,2982.2,0.001]
[1767100917484,2.2947,2982.8,2982.3,0.88]
[1767100917884,2.2947,2982.8,2982.5,0.001]
[1767100918252,0.89990799,2983.0,2982.5,0.001]
[1767100918453,2.4741,2983.2,2982.5,0.001]
[1767100918760,2.4741,2983.5,2982.5,0.001]
[1767100920370,2.4741,2983.4,2982.5,3.35389186]
[1767100920568,2.4741,2983.4,2982.6,0.03352779]
[1767100920781,2.4741,2983.4,2982.5,3.35389186]
[1767100921000,2.4741,2983.4,2982.5,4.11594082]
[1767100923502,2.4741,2983.4,2982.5,4.14946973]
[1767100924502,2.4741,2983.4,2982.5,4.11594082]
[1767100925103,2.4761,2983.4,2982.5,4.11594082]
[1767100925486,2.4761,2983.4,2982.5,4.14946973]
[1767100925792,2.4761,2983.4,2982.6,0.75024638]
[1767100926906,5.82798149,2983.4,2982.6,0.75024638]
[1767100927293,2.4741,2983.3,2982.6,0.75024638]
[1767100927973,0.002,2983.4,2982.8,4.90605396]
[1767100928293,0.002,2983.7,2983.1,4.90605396]
[1767100928472,0.002,2983.7,2983.2,0.4906054]
[1767100928673,0.002,2983.7,2982.9,0.91352442]
[1767100929170,0.002,2983.7,2983.0,3.35232986]
[1767100929516,2.4761,2983.7,2983.0,6.70465972]
[1767100929677,0.002,2983.7,2983.0,6.70465972]
[1767100931279,0.002,2983.7,2983.0,3.35232986]
[1767100931479,0.002,2983.7,2983.1,3.61473851]
[1767100931987,0.002,2983.7,2983.1,6.966956]
[1767100933014,0.002,2983.7,2983.1,3.61473851]
[1767100933587,0.002,2983.7,2983.1,3.64826068]
[1767100935714,0.002,2983.7,2983.1,3.61473851]
[1767100937294,0.002,2983.7,2983.2,0.69670626]
[1767100938316,2.4401,2983.7,2983.1,3.61473851]
[1767100939533,2.4401,2983.7,2983.1,0.26254439]
[1767100939822,2.4401,2983.7,2982.9,4.23241437]
[1767100940521,2.4401,2983.7,2983.0,3.35232986]
[1767100940819,1.94436758,2983.7,2983.1,0.4938]
[1767100941622,1.94636758,2983.7,2983.1,0.4938]
[1767100942322,1.94636758,2983.7,2983.2,0.4938]
[1767100943125,1.94636758,2983.7,2983.1,3.35213228]
[1767100943297,1.94636758,2983.7,2983.1,4.15996955]
[1767100943494,1.94636758,2983.7,2983.2,0.4938]
[1767100944818,1.94636758,2983.7,2983.3,0.4938]
[1767100945001,1.94636758,2983.7,2983.3,1.3738]
[1767100945405,0.002,2983.7,2983.4,0.4938]
[1767100946397,2.4381,2983.9,2983.4,0.4918]
[1767100947920,2.4381,2984.1,2983.5,0.4918]
[1767100948327,0.002,2983.7,2983.5,0.4918]
[1767100951828,2.4381,2984.1,2983.4,3.35186305]
[1767100952128,2.4381,2984.1,2983.5,0.4898]
[1767100954211,3.01700229,2984.1,2983.5,0.4898]
[1767100955429,3.01900229,2984.1,2983.5,0.4898]
[1767100965648,6.37011621,2984.1,2983.5,0.4898]
[1767100965826,2.4381,2984.0,2983.5,0.4898]
[1767100972032,2.4381,2984.0,2983.5,0.4908]
[1767100976653,0.58090229,2984.1,2983.5,0.4908]
[1767100976952,2.94400229,2984.1,2983.5,0.4908]
[1767100982829,0.002,2984.7,2984.3,0.4878]
[1767100983024,2.3084,2984.7,2984.3,0.4878]
[1767100983749,0.002,2984.7,2984.3,0.4878]
[1767100983952,0.002,2984.7,2984.4,0.4878]
[1767100984156,2.3084,2984.7,2984.4,0.4878]
[1767100984449,2.3064,2984.6,2984.1,0.4878]
[1767100986758,2.3064,2984.6,2983.9,0.4878]
[1767100986959,2.3064,2984.6,2984.0,0.88]
[1767100987828,2.3084,2984.6,2984.0,1.3678]
[1767100988030,2.3084,2984.6,2984.1,0.4878]
[1767100988962,3.35227268,2984.9,2984.3,4.90729859]
[1767100988963,0.002,2984.9,2984.3,4.90729859]
[1767100989262,0.002,2985.0,2984.4,0.4798]
[1767100989831,2.3064,2984.9,2984.4,0.4798]
[1767100990032,2.3064,2984.9,2984.5,0.4798]
[1767100995678,2.3064,2985.2,2984.6,0.4778]
[1767100996683,0.002,2984.9,2984.6,0.4778]
[1767100997760,2.4842,2984.9,2984.6,0.4778]
[1767100998878,0.002,2984.9,2984.6,0.4778]
[1767100999073,2.4822,2985.1,2984.6,0.4758]
[1767100999983,0.002,2985.3,2984.7,0.4758]
[1767101000277,2.4822,2985.5,2985.1,0.4738]
[1767101003664,2.4822,2985.5,2984.9,0.88]
[1767101003864,2.4822,2985.5,2984.9,4.23018667]
[1767101004181,2.4842,2985.5,2985.0,0.89681867]
[1767101004560,2.4842,2985.5,2985.1,0.4738]
[1767101005477,0.002,2986.1,2985.4,4.90729859]
[1767101005784,2.4822,2986.5,2985.8,0.4658]
[1767101005984,2.4822,2986.5,2985.9,0.4658]
[1767101009091,2.4822,2987.2,2986.1,4.89903257]
[1767101009394,2.4822,2987.2,2986.2,0.57780326]
[1767101009561,2.4822,2987.2,2986.0,0.879]
[1767101009759,2.4822,2987.0,2986.1,0.879]
[1767101009962,2.4822,2987.0,2986.1,5.77803257]
[1767101010257,2.4822,2987.0,2986.1,0.879]
[1767101010660,0.002,2987.3,2986.2,6.69747504]
[1767101010870,0.002,2987.3,2986.3,0.7576475]
[1767101010871,2.4842,2987.3,2986.3,0.7576475]
[1767101011072,2.4842,2987.3,2986.4,0.879]
[1767101012170,2.4842,2987.3,2986.1,3.34882638]
[1767101012369,2.4842,2987.3,2986.5,0.879]
[1767101012670,0.002,2987.2,2986.5,6.69680226]
[1767101012873,0.002,2987.2,2986.6,0.75758023]
[1767101013567,0.002,2987.2,2986.5,6.69680226]
[1767101013761,0.002,2987.3,2986.5,11.59583483]
[1767101014162,0.002,2987.3,2986.5,6.69680226]
[1767101014559,2.4842,2987.3,2986.5,3.34840113]
[1767101014771,2.73062,2987.2,2986.4,0.879]
[1767101014987,2.73062,2987.2,2986.3,0.879]
[1767101015174,2.4822,2987.1,2986.1,6.69769934]
[1767101015363,2.4822,2987.1,2986.1,6.73118783]
[1767101015583,0.24842,2987.2,2986.2,4.89903257]
[1767101015885,0.24842,2987.2,2986.3,1.16302204]
[1767101016075,2.73062,2987.2,2986.3,1.16302204]
[1767101017098,2.73062,2987.2,2986.3,4.51160175]
[1767101017295,2.73062,2987.2,2986.3,3.34857971]
[1767101017992,3.59604858,2987.2,2986.2,3.3487019]
[1767101018198,2.4822,2987.1,2986.2,3.3487019]
[1767101018397,2.4822,2987.1,2986.3,3.34859994]
[1767101018802,2.4822,2987.1,2986.0,0.879]
[1767101019008,2.4822,2986.9,2986.0,4.22793278]
[1767101019173,3.34796054,2986.9,2986.0,4.22793278]
[1767101019374,3.34796054,2986.9,2985.4,4.89903257]
[1767101019375,2.4822,2986.8,2985.9,3.34902002]
[1767101020569,2.4822,2986.8,2986.3,0.001]
[1767101021088,2.4822,2986.8,2986.1,0.001]
[1767101021296,2.4822,2986.6,2986.1,0.001]
[1767101022193,2.4822,2986.6,2985.8,0.001]
[1767101023394,2.4822,2986.5,2985.8,0.001]
[1767101023777,2.4822,2986.5,2985.9,0.001]
[1767101024092,0.879,2986.6,2985.9,0.001]
[1767101024294,1.57475583,2986.6,2985.9,0.001]
[1767101024508,2.4822,2986.5,2985.9,0.001]
[1767101025009,2.4822,2986.5,2985.8,0.03349186]
[1767101025204,2.4822,2986.5,2985.9,0.001]
[1767101026804,0.24822,2986.7,2985.9,0.001]
[1767101027004,3.2452,2986.8,2985.8,11.5973724]
[1767101027708,3.2452,2986.8,2985.9,0.001]
[1767101027905,2.3662,2986.8,2985.9,0.001]
[1767101028094,0.879,2986.9,2985.9,0.03449073]
[1767101028408,0.879,2986.9,2986.1,3.34884967]
[1767101028607,0.879,2986.9,2986.2,0.03348737]
[1767101030214,3.2452,2987.0,2986.1,3.34884967]
[1767101030409,6.5930727,2987.0,2986.1,3.34884967]
[1767101030710,2.3662,2986.9,2986.1,3.34884967]
[1767101030905,2.3662,2986.9,2986.1,0.76297661]
[1767101031105,2.3662,2986.9,2986.0,3.34890771]
[1767101032308,2.3662,2986.9,2986.1,0.03348849]
[1767101032507,2.3662,2987.1,2986.1,4.93252106]
[1767101032808,0.879,2987.0,2986.1,4.93252106]
[1767101033307,3.2452,2987.0,2986.1,4.93252106]
[1767101033509,3.2452,2987.0,2986.2,0.49325211]
[1767101034322,3.2452,2987.0,2986.2,3.84192541]
[1767101035816,0.002,2987.2,2986.4,4.89903257]
[1767101036120,0.879,2987.1,2986.4,4.89903257]
[1767101036823,0.879,2987.1,2986.5,3.38178011]
[1767101037019,0.002,2987.2,2986.6,1.1629321]
[1767101037223,0.879,2987.1,2986.6,1.1629321]
[1767101038426,0.879,2987.1,2986.4,3.34845637]
[1767101039225,0.879,2987.1,2986.3,3.34861574]
[1767101039524,0.879,2987.1,2986.4,0.03348513]
[1767101039724,0.881,2987.2,2986.4,0.03348513]
[1767101039923,0.002,2987.2,2986.4,4.9325177]
[1767101040226,0.002,2987.2,2986.5,1.63072841]
[1767101040431,0.002,2987.2,2986.6,0.03348289]
[1767101041641,0.002,2987.2,2986.7,6.69635382]
[1767101042135,0.002,2987.2,2986.7,3.34817691]
[1767101043529,0.002,2987.2,2986.5,6.69680226]
[1767101043720,0.002,2987.2,2986.6,0.67302874]
[1767101044834,0.002,2987.2,2986.7,3.34817691]
[1767101048438,0.881,2987.2,2986.7,3.34817691]
[1767101048817,0.002,2987.2,2986.7,3.34817691]
[1767101049019,0.881,2987.2,2986.7,3.34817691]
[1767101049328,0.881,2987.2,2986.8,0.73694294]
[1767101049936,0.002,2987.2,2986.8,0.73694294]
[1767101050106,0.881,2987.2,2986.8,0.73694294]
[1767101050732,0.879,2987.1,2986.8,4.08498749]
[1767101051725,0.002,2987.2,2986.8,4.08498749]
[1767101051926,2.3584,2987.2,2986.9,0.40849875]
[1767101053043,2.3584,2987.2,2986.9,3.75643233]
[1767101053245,2.3584,2987.2,2986.9,0.40849875]
[1767101053935,2.3584,2987.2,2986.9,3.75643316]
[1767101054553,2.3584,2987.2,2986.9,0.40849875]
[1767101055342,2.3584,2987.2,2986.8,3.34801208]
[1767101055544,2.3584,2987.2,2986.8,4.05858912]
[1767101056060,2.3584,2987.2,2986.6,0.001]
[1767101056217,2.3584,2987.2,2986.3,0.001]
[1767101056218,2.3584,2987.2,2986.3,1.7394]
[1767101056422,2.4318,2987.1,2986.3,0.001]
[1767101056646,2.4318,2987.1,2986.3,1.7394]
[1767101056852,2.4318,2987.1,2986.4,1.7384]
[1767101057029,2.4318,2986.9,2986.4,1.7384]
[1767101057432,3.00994185,2987.0,2986.4,1.7384]
[1767101057967,3.34786369,2987.0,2986.4,1.7384]
[1767101058201,3.34786369,2987.0,2986.0,0.03448961]
[1767101058202,2.4318,2986.7,2986.0,0.001]
[1767101059053,5.77997691,2986.7,2986.6,0.001]
[1767101059256,2.4318,2986.7,2986.0,0.001]
[1767101059545,2.4318,2986.6,2986.0,0.001]
[1767101060845,0.879,2986.5,2986.0,0.001]
[1767101061043,2.4318,2986.4,2986.0,0.001]
[1767101061445,2.4318,2986.4,2985.6,0.001]
[1767101062119,2.4318,2987.0,2986.1,0.002]
[1767101062343,2.4338,2987.2,2986.1,0.002]
[1767101062649,2.4338,2987.2,2986.3,0.002]
[1767101062947,2.4338,2987.2,2986.4,0.002]
[1767101063150,2.4338,2987.2,2986.6,0.002]
[1767101063649,3.3128,2987.2,2986.6,0.002]
[1767101071053,2.4338,2987.2,2986.6,0.002]
[1767101072259,2.4318,2987.1,2986.6,0.002]
[1767101073923,2.4318,2987.1,2985.8,0.002]
[1767101073924,2.4318,2986.7,2985.8,0.002]
[1767101074135,2.4318,2986.7,2986.1,0.002]
[1767101074335,3.3108,2986.7,2986.2,0.002]
[1767101075060,6.69547098,2987.1,2986.5,0.002]
[1767101075061,2.4318,2987.1,2986.5,0.002]
[1767101075256,0.002,2987.2,2986.7,0.002]
[1767101075445,0.881,2987.2,2986.7,0.002]
[1767101075647,0.002,2987.2,2986.7,0.002]
[1767101075848,0.881,2987.2,2986.7,0.002]
[1767101076053,3.3128,2987.2,2986.7,0.002]
[1767101078875,2.4318,2987.1,2986.7,0.002]
[1767101079048,2.4318,2987.1,2986.2,3.34868215]
[1767101079049,3.34794698,2987.0,2986.2,0.002]
[1767101079249,2.4318,2986.9,2986.2,0.002]
[1767101081567,2.4318,2986.8,2986.2,0.002]
[1767101081750,3.3108,2986.7,2986.2,0.002]
[1767101082776,3.3108,2986.9,2986.3,4.89698776]
[1767101082981,6.65858484,2987.1,2986.5,0.002]
[1767101083181,1.09892,2987.0,2986.4,0.03348513]
[1767101083478,1.09892,2987.0,2986.3,4.89698776]
[1767101083780,6.65858484,2987.1,2986.3,4.89698776]
[1767101083978,2.4318,2987.0,2986.3,4.89698776]
[1767101084474,2.4318,2987.0,2986.1,4.93047625]
[1767101085079,2.4318,2986.9,2986.1,0.03348849]
[1767101085253,2.4318,2986.9,2985.9,0.03449073]
[1767101085584,2.4318,2986.9,2986.0,0.87714785]
[1767101087686,2.3609,2986.7,2986.0,0.87714785]
[1767101090384,2.3609,2986.6,2986.0,0.87714785]
[1767101090768,2.3609,2986.6,2985.9,0.001]
[1767101091765,2.3609,2986.5,2985.9,0.001]
[1767101093788,2.3609,2986.4,2985.9,0.001]